fUSD/lending_fUSD_20250716
["ID","MTS","AMOUNT","RATE_DAILY","PERIOD"]
[372409398,1752633059502,-463.30412357,0.00021917,2]
[372409399,1752633059511,-5688.11,0.00021917,2]
[372409400,1752633059520,-460.0,0.00021917,2]
[372409401,1752633059530,-460.0,0.00021917,2]
[372409402,1752633059541,-460.0,0.00021917,2]
[372409403,1752633059551,-1354.34,0.00021917,2]
[372409404,1752633059562,-10588.02,0.00021917,2]
[372409405,1752633059571,-460.0,0.00021917,2]
[372409406,1752633059581,-5866.79,0.00021917,2]
[372409407,1752633059590,-460.0,0.00021917,2]
[372409408,1752633059600,-460.0,0.00021917,2]
[372409409,1752633059610,-303.235357,0.00021917,2]
[372409410,1752633059619,-460.0,0.00021917,2]
[372409411,1752633059629,-303.235357,0.00021917,2]
[372409412,1752633059638,-5983.53,0.00021917,2]
[372409413,1752633059647,-1008.18,0.00021917,2]
[372409414,1752633059657,-303.235357,0.00021917,2]
[372409415,1752633059666,-303.235357,0.00021917,2]
[372409416,1752633059676,-460.0,0.00021917,2]
[372409417,1752633059685,-460.0,0.00021917,2]
[372409418,1752633059695,-303.235357,0.00021917,2]
[372409419,1752633059704,-303.235357,0.00021917,2]
[372409420,1752633059713,-5814.43,0.00021917,2]
[372409421,1752633059723,-2570.47,0.00021917,2]
[372409422,1752633059732,-461.64878897,0.00021917,2]
[372409423,1752633059741,-303.235357,0.00021917,2]
[372409424,1752633059753,-462.44967927,0.00021917,2]
[372409425,1752633059762,-303.235357,0.00021917,2]
[372409426,1752633059771,-460.0,0.00021917,2]
[372409427,1752633059781,-739.44,0.00021917,2]
[372409428,1752633059790,-460.66083189,0.00021917,2]
[372409429,1752633059799,-460.0,0.00021917,2]
[372409430,1752633059809,-1912.64,0.00021917,2]
[372409431,1752633059819,-460.0,0.00021917,2]
[372409432,1752633059828,-483.81585413,0.00021917,2]
[372409433,1752633059838,-182.09156,0.00021917,2]
[372409434,1752633059847,-667.76,0.00021917,2]
[372409435,1752633059857,-1208.93,0.00021917,2]
[372409436,1752633059866,-2090.86,0.00021917,2]
[372409437,1752633059876,-460.0,0.00021917,2]
[372409438,1752633059886,-2192.79,0.00021917,2]
[372409439,1752633059895,-3496.09,0.00021917,2]
[372409440,1752633059905,-4801.85,0.00021917,2]
[372409441,1752633059914,-1485.66,0.00021917,2]
[372409442,1752633059924,-1733.69,0.00021917,2]
[372409443,1752633059933,-1819.32,0.00021917,2]
[372409444,1752633059943,-460.0,0.00021917,2]
[372409445,1752633059953,-460.0,0.00021917,2]
[372409446,1752633059962,-460.0,0.00021917,2]
[372409447,1752633059972,-4578.91,0.00021917,2]
[372409448,1752633059981,-986.02,0.00021917,2]
[372409449,1752633059991,-303.235357,0.00021917,2]
[372409450,1752633060003,-303.235357,0.00021917,2]
[372409451,1752633060012,-152.70195244,0.00021917,2]
[372409452,1752633060022,-303.235357,0.00021917,2]
[372409453,1752633060032,-460.0,0.00021917,2]
[372409454,1752633060042,-501.85,0.00021917,2]
[372409455,1752633060051,-303.235357,0.00021917,2]
[372409456,1752633060061,-303.235357,0.00021917,2]
[372409457,1752633060072,-460.0,0.00021917,2]
[372409458,1752633060082,-303.235357,0.00021917,2]
[372409459,1752633060092,-1307.36,0.00021917,2]
[372409460,1752633060101,-1307.36,0.00021917,2]
[372409461,1752633060111,-303.235357,0.00021917,2]
[372409462,1752633060120,-3052.79,0.00021917,2]
[372409463,1752633060130,-460.89151191,0.00021917,2]
[372409464,1752633060139,-1307.36,0.00021917,2]
[372409465,1752633060149,-303.235357,0.00021917,2]
[372409466,1752633060159,-1307.36,0.00021917,2]
[372409467,1752633060168,-7608.61,0.00021917,2]
[372409468,1752633060177,-460.0,0.00021917,2]
[372409469,1752633060187,-460.0,0.00021917,2]
[372409470,1752633060197,-7083.91,0.00021917,2]
[372409471,1752633060207,-460.0,0.00021917,2]
[372409472,1752633060217,-2910.24,0.00021917,2]
[372409473,1752633060227,-1307.36,0.00021917,2]
[372409474,1752633060237,-1321.08,0.00021917,2]
[372409475,1752633060248,-460.0,0.00021917,2]
[372409476,1752633060259,-1307.36,0.00021917,2]
[372409477,1752633060269,-460.0,0.00021917,2]
[372409478,1752633060279,-1307.36,0.00021917,2]
[372409479,1752633060288,-6987.06,0.00021917,2]
[372409480,1752633060298,-1307.36,0.00021917,2]
[372409481,1752633060307,-460.0,0.00021917,2]
[372409482,1752633060317,-1307.36,0.00021917,2]
[372409483,1752633060327,-460.0,0.00021917,2]
[372409484,1752633060337,-486.05,0.00021917,2]
[372409485,1752633060349,-1307.36,0.00021917,2]
[372409486,1752633060359,-1307.36,0.00021917,2]
[372409487,1752633060370,-1307.36,0.00021917,2]
[372409488,1752633060381,-1128.93,0.00021917,2]
[372409489,1752633060393,-940.67,0.00021917,2]
[372409490,1752633060404,-654.95,0.00021917,2]
[372409491,1752633060414,-654.95,0.00021917,2]
[372409492,1752633060425,-654.95,0.00021917,2]
[372409493,1752633060435,-460.0,0.00021917,2]
[372409494,1752633060447,-654.95,0.00021917,2]
[372409495,1752633060457,-654.95,0.00021917,2]
[372409496,1752633060471,-460.0,0.00021917,2]
[372409497,1752633060482,-654.95,0.00021917,2]
[372409498,1752633060492,-1504.75,0.00021917,2]
[372409499,1752633060504,-654.95,0.00021917,2]
[372409500,1752633060514,-461.78979739,0.00021917,2]
[372409501,1752633060524,-654.95,0.00021917,2]
[372409502,1752633060533,-654.95,0.00021917,2]
[372409503,1752633060543,-654.95,0.00021917,2]
[372409504,1752633060553,-654.95,0.00021917,2]
[372409505,1752633060563,-596.74,0.00021917,2]
[372409506,1752633060573,-460.0,0.00021917,2]
[372409507,1752633060583,-596.74,0.00021917,2]
[372409508,1752633060592,-596.74,0.00021917,2]
[372409509,1752633060604,-596.74,0.00021917,2]
[372409510,1752633060615,-596.74,0.00021917,2]
[372409511,1752633060625,-460.0,0.00021917,2]
[372409512,1752633060636,-596.74,0.00021917,2]
[372409513,1752633060648,-596.74,0.00021917,2]
[372409514,1752633060659,-4707.63,0.00021917,2]
[372409515,1752633060671,-596.74,0.00021917,2]
[372409516,1752633060680,-659.64,0.00021917,2]
[372409517,1752633060691,-596.74,0.00021917,2]
[372409518,1752633060702,-1372.71,0.00021917,2]
[372409519,1752633060711,-1464.39,0.00021917,2]
[372409520,1752633060721,-3506.77,0.00021917,2]
[372409521,1752633060732,-653.67,0.00021917,2]
[372409522,1752633060742,-462.42146301,0.00021917,2]
[372409523,1752633060756,-877.44,0.00021917,2]
[372409524,1752633060765,-151.0,0.00021917,2]
[372409525,1752633060775,-460.0,0.00021917,2]
[372409526,1752633060784,-151.0,0.00021917,2]
[372409527,1752633060793,-460.0,0.00021917,2]
[372409528,1752633060803,-151.0,0.00021917,2]
[372409529,1752633060813,-568.98,0.00021917,2]
[372409530,1752633060823,-1407.63,0.00021917,2]
[372409531,1752633060833,-595.56,0.00021917,2]
[372409532,1752633060844,-460.0,0.00021917,2]
[372409533,1752633060854,-300.0,0.00021917,2]
[372409534,1752633060866,-153.232951,0.00021917,2]
[372409535,1752633060876,-462.24493559,0.00021917,2]
[372409536,1752633060886,-2328.71,0.00021917,2]
[372409537,1752633060895,-1818.45,0.00021917,2]
[372409538,1752633060905,-460.0,0.00021917,2]
[372409539,1752633060915,-1818.45,0.00021917,2]
[372409540,1752633060924,-1818.45,0.00021917,2]
[372409541,1752633060933,-1818.45,0.00021917,2]
[372409542,1752633060944,-2571.38,0.00021917,2]
[372409543,1752633060955,-1818.45,0.00021917,2]
[372409544,1752633060965,-1818.45,0.00021917,2]
[372409545,1752633060974,-460.0,0.00021917,2]
[372409546,1752633060984,-460.0,0.00021917,2]
[372409547,1752633060993,-1818.45,0.00021917,2]
[372409548,1752633061007,-1610.12,0.00021917,2]
[372409549,1752633061017,-460.0,0.00021917,2]
[372409550,1752633061027,-2438.87,0.00021917,2]
[372409551,1752633061036,-460.0,0.00021917,2]
[372409552,1752633061046,-460.0,0.00021917,2]
[372409553,1752633061055,-460.0,0.00021917,2]
[372409554,1752633061064,-4839.91,0.00021917,2]
[372409555,1752633061074,-462.35952837,0.00021917,2]
[372409556,1752633061083,-1818.45,0.00021917,2]
[372409557,1752633061093,-1818.45,0.00021917,2]
[372409558,1752633061103,-460.0,0.00021917,2]
[372409559,1752633061112,-1818.45,0.00021917,2]
[372409560,1752633061122,-3910.76,0.00021917,2]
[372409561,1752633061131,-1818.45,0.00021917,2]
[372409562,1752633061141,-1694.13,0.00021917,2]
[372409563,1752633061150,-460.0,0.00021917,2]
[372409564,1752633061160,-1834.43,0.00021917,2]
[372409565,1752633061169,-460.0,0.00021917,2]
[372409566,1752633061179,-460.0,0.00021917,2]
[372409567,1752633061189,-460.0,0.00021917,2]
[372409568,1752633061199,-460.0,0.00021917,2]
[372409569,1752633061208,-6788.08,0.00021917,2]
[372409570,1752633061219,-1886.62,0.00021917,2]
[372409571,1752633061228,-8281.76,0.00021917,2]
[372409572,1752633061238,-6313.45,0.00021917,2]
[372409573,1752633061252,-460.0,0.00021917,2]
[372409574,1752633061262,-460.0,0.00021917,2]
[372409575,1752633061271,-1654.97,0.00021917,2]
[372409576,1752633061281,-1044.89,0.00021917,2]
[372409577,1752633061292,-480.99,0.00021917,2]
[372409578,1752633061301,-460.0,0.00021917,2]
[372409579,1752633061311,-2561.03,0.00021917,2]
[372409580,1752633061321,-3073.08,0.00021917,2]
[372409581,1752633061330,-2142.13,0.00021917,2]
[372409582,1752633061339,-3265.78,0.00021917,2]
[372409583,1752633061349,-4140.33,0.00021917,2]
[372409584,1752633061359,-1864.19,0.00021917,2]
[372409585,1752633061368,-6710.76,0.00021917,2]
[372409586,1752633061378,-646.36,0.00021917,2]
[372409587,1752633061388,-460.0,0.00021917,2]
[372409588,1752633061402,-460.0,0.00021917,2]
[372409589,1752633061411,-466.12448087,0.00021917,2]
[372409590,1752633061420,-1205.51,0.00021917,2]
[372409591,1752633061430,-460.0,0.00021917,2]
[372409592,1752633061446,-3216.41,0.00021917,2]
[372409593,1752633061456,-460.0,0.00021917,2]
[372409594,1752633061466,-6408.09,0.00021917,2]
[372409595,1752633061477,-4067.28,0.00021917,2]
[372409596,1752633061489,-1568.51,0.00021917,2]
[372409597,1752633061504,-1587.79,0.00021917,2]
[372409598,1752633061513,-9974.26,0.00021917,2]
[372409599,1752633061522,-3761.72,0.00021917,2]
[372409600,1752633061531,-460.0,0.00021917,2]
[372409601,1752633061541,-460.0,0.00021917,2]
[372409602,1752633061550,-460.0,0.00021917,2]
[372409603,1752633061563,-2012.14,0.00021917,2]
[372409604,1752633061573,-2207.48,0.00021917,2]
[372409605,1752633061583,-460.0,0.00021917,2]
[372409606,1752633061592,-460.0,0.00021917,2]
[372409607,1752633061602,-460.0,0.00021917,2]
[372409608,1752633061612,-460.0,0.00021917,2]
[372409609,1752633061622,-2687.18,0.00021917,2]
[372409610,1752633061632,-4075.08,0.00021917,2]
[372409611,1752633061643,-460.0,0.00021917,2]
[372409612,1752633061652,-5563.87,0.00021917,2]
[372409613,1752633061993,-460.0,0.00021917,2]
[372409614,1752633062014,-460.0,0.00021917,2]
[372409615,1752633062023,-460.0,0.00021917,2]
[372409616,1752633062033,-151.0,0.00021917,2]
[372409617,1752633062043,-151.0,0.00021917,2]
[372409618,1752633062052,-460.0,0.00021917,2]
[372409619,1752633062061,-151.0,0.00021917,2]
[372409620,1752633062071,-151.0,0.00021917,2]
[372409621,1752633062081,-6462.33,0.00021917,2]
[372409622,1752633062090,-151.0,0.00021917,2]
[372409623,1752633062100,-460.0,0.00021917,2]
[372409624,1752633062110,-17096.27,0.00021917,2]
[372409625,1752633062120,-151.0,0.00021917,2]
[372409626,1752633062129,-460.0,0.00021917,2]
[372409627,1752633062139,-157.62108,0.00021917,2]
[372409628,1752633062149,-2724.14,0.00021917,2]
[372409629,1752633062159,-460.0,0.00021917,2]
[372409630,1752633062169,-2342.93,0.00021917,2]
[372409631,1752633062179,-460.0,0.00021917,2]
[372409632,1752633062189,-460.0,0.00021917,2]
[372409633,1752633062198,-912.07,0.00021917,2]
[372409634,1752633062208,-2910.09,0.00021917,2]
[372409635,1752633062218,-1233.63,0.00021917,2]
[372409636,1752633062227,-6145.76,0.00021917,2]
[372409637,1752633062236,-460.0,0.00021917,2]
[372409638,1752633062249,-13140.58,0.00021917,2]
[372409639,1752633062258,-460.0,0.00021917,2]
[372409640,1752633062268,-460.0,0.00021917,2]
[372409641,1752633062278,-420.92966712,0.00021917,2]
[372409642,1752633062288,-6990.19,0.00021917,2]
[372409643,1752633062298,-460.0,0.00021917,2]
[372409644,1752633062308,-460.0,0.00021917,2]
[372409645,1752633062317,-812.84,0.00021917,2]
[372409646,1752633062328,-35219.72,0.00021917,2]
[372409647,1752633062339,-461.7384769,0.00021917,2]
[372409648,1752633062348,-7147.73,0.00021917,2]
[372409649,1752633062358,-678.25,0.00021917,2]
[372409650,1752633062368,-460.0,0.00021917,2]
[372409651,1752633062378,-678.25,0.00021917,2]
[372409652,1752633062388,-678.25,0.00021917,2]
[372409653,1752633062404,-678.25,0.00021917,2]
[372409654,1752633062414,-704.37,0.00021917,2]
[372409655,1752633062425,-678.25,0.00021917,2]
[372409656,1752633062435,-678.25,0.00021917,2]
[372409657,1752633062447,-460.0,0.00021917,2]
[372409658,1752633062456,-678.25,0.00021917,2]
[372409659,1752633062468,-678.25,0.00021917,2]
[372409660,1752633062479,-1084.162014,0.00021917,2]
[372409661,1752633062491,-678.25,0.00021917,2]
[372409662,1752633062503,-460.97342545,0.00021917,2]
[372409663,1752633062513,-678.25,0.00021917,2]
[372409664,1752633062522,-1084.162014,0.00021917,2]
[372409665,1752633062531,-460.0,0.00021917,2]
[372409666,1752633062540,-738.28,0.00021917,2]
[372409667,1752633062551,-678.25,0.00021917,2]
[372409668,1752633062563,-1084.162014,0.00021917,2]
[372409669,1752633062572,-5317.03,0.00021917,2]
[372409670,1752633062582,-1084.162014,0.00021917,2]
[372409671,1752633062591,-151.0,0.00021917,2]
[372409672,1752633062601,-460.0,0.00021917,2]
[372409673,1752633062610,-1084.162014,0.00021917,2]
[372409674,1752633062620,-151.0,0.00021917,2]
[372409675,1752633062629,-1241.67,0.00021917,2]
[372409676,1752633062641,-1084.162014,0.00021917,2]
[372409677,1752633062651,-151.0,0.00021917,2]
[372409678,1752633062660,-460.0,0.00021917,2]
[372409679,1752633062671,-1084.162014,0.00021917,2]
[372409680,1752633062682,-151.0,0.00021917,2]
[372409681,1752633062692,-1084.162014,0.00021917,2]
[372409682,1752633062701,-1192.35,0.00021917,2]
[372409683,1752633062711,-151.0,0.00021917,2]
[372409684,1752633062720,-596.5,0.00021917,2]
[372409685,1752633062729,-1084.162014,0.00021917,2]
[372409686,1752633062739,-1084.162014,0.00021917,2]
[372409687,1752633062751,-151.0,0.00021917,2]
[372409688,1752633062760,-1084.162014,0.00021917,2]
[372409689,1752633062769,-197.164991,0.00021917,2]
[372409690,1752633062778,-17754.25,0.00021917,2]
[372409691,1752633062787,-1084.162014,0.00021917,2]
[372409692,1752633062797,-2458.24,0.00021917,2]
[372409693,1752633062807,-179.708148,0.00021917,2]
[372409694,1752633062816,-1084.162014,0.00021917,2]
[372409695,1752633062826,-1084.162014,0.00021917,2]
[372409696,1752633062835,-179.708148,0.00021917,2]
[372409697,1752633062845,-460.0,0.00021917,2]
[372409698,1752633062856,-1084.162014,0.00021917,2]
[372409699,1752633062867,-845.28,0.00021917,2]
[372409700,1752633062878,-179.708148,0.00021917,2]
[372409701,1752633062889,-1084.162014,0.00021917,2]
[372409702,1752633062899,-179.708148,0.00021917,2]
[372409703,1752633062911,-496.8,0.00021917,2]
[372409704,1752633062920,-1084.162014,0.00021917,2]
[372409705,1752633062929,-460.0,0.00021917,2]
[372409706,1752633062939,-2291.19,0.00021917,2]
[372409707,1752633062948,-460.0,0.00021917,2]
[372409708,1752633062957,-179.708148,0.00021917,2]
[372409709,1752633062966,-179.708148,0.00021917,2]
[372409710,1752633062976,-1084.162014,0.00021917,2]
[372409711,1752633062986,-179.708148,0.00021917,2]
[372409712,1752633062999,-152.451041,0.00021917,2]
[372409713,1752633063009,-8597.83,0.00021917,2]
[372409714,1752633063019,-460.0,0.00021917,2]
[372409715,1752633063029,-179.708148,0.00021917,2]
[372409716,1752633063040,-2000.0,0.00021917,30]
[372409717,1752633063051,-179.708148,0.00021917,2]
[372409718,1752633063061,-2000.0,0.00021917,30]
[372409719,1752633063071,-523.9,0.00021917,2]
[372409720,1752633063081,-460.75993397,0.00021917,7]
[372409721,1752633063091,-708.01936891,0.00021917,30]
[372409722,1752633063101,-996.04,0.00021917,2]
[372409723,1752633063110,-179.708148,0.00021917,2]
[372409724,1752633063120,-179.708148,0.00021917,2]
[372409725,1752633063130,-1778.28,0.00021917,2]
[372409726,1752633063141,-179.708148,0.00021917,2]
[372409727,1752633063151,-733.52,0.00021917,2]
[372409728,1752633063160,-179.708148,0.00021917,2]
[372409729,1752633063170,-179.708148,0.00021917,2]
[372409730,1752633063181,-1132.15,0.00021917,2]
[372409731,1752633063191,-460.0,0.00021917,2]
[372409732,1752633063201,-460.0,0.00021917,2]
[372409733,1752633063211,-3792.4,0.00021917,2]
[372409734,1752633063220,-460.0,0.00021917,2]
[372409735,1752633063230,-460.0,0.00021917,2]
[372409736,1752633063239,-680.55,0.00021917,2]
[372409737,1752633063251,-3562.24,0.00021917,2]
[372409738,1752633063260,-7671.23,0.00021917,2]
[372409739,1752633063270,-25427.58,0.00021917,2]
[372409740,1752633063281,-460.0,0.00021917,2]
[372409741,1752633063291,-28049.79,0.00021917,2]
[372409742,1752633063300,-4966.51,0.00021917,2]
[372409743,1752633063310,-460.0,0.00021917,2]
[372409744,1752633063319,-150.923723,0.00021917,2]
[372409745,1752633063330,-460.0,0.00021917,2]
[372409746,1752633063340,-567.32,0.00021917,2]
[372409747,1752633063350,-598.75,0.00021917,2]
[372409748,1752633063359,-1601.61,0.00021917,2]
[372409749,1752633063369,-460.0,0.00021917,2]
[372409750,1752633063378,-2045.5,0.00021917,2]
[372409751,1752633063388,-1179.82,0.00021917,2]
[372409752,1752633063401,-460.0,0.00021917,2]
[372409753,1752633063411,-493.03493162,0.00021917,2]
[372409754,1752633063421,-830.56,0.00021917,2]
[372409755,1752633063431,-3753.3,0.00021917,2]
[372409756,1752633063443,-500.0,0.00021917,2]
[372409757,1752633063453,-344.82493385,0.00021917,2]
[372409758,1752633063463,-460.0,0.00021917,2]
[372409759,1752633063472,-460.0,0.00021917,2]
[372409760,1752633063484,-3827.77,0.00021917,2]
[372409761,1752633063496,-4256.94,0.00021917,2]
[372409762,1752633063506,-1640.94,0.00021917,2]
[372409763,1752633063515,-461.07437066,0.00021917,2]
[372409764,1752633063524,-233.11917188,0.00021917,2]
[372409765,1752633063534,-17550.02,0.00021917,2]
[372409766,1752633063544,-1893.59,0.00021917,2]
[372409767,1752633063554,-61924.51,0.00021917,2]
[372409768,1752633063564,-460.0,0.00021917,2]
[372409769,1752633063574,-437.61655254,0.00021917,2]
[372409770,1752633063583,-5362.06,0.00021917,2]
[372409771,1752633063592,-460.0,0.00021917,2]
[372409772,1752633063603,-460.0,0.00021917,2]
[372409773,1752633063612,-3197.89,0.00021917,2]
[372409774,1752633063621,-151.0,0.00021917,2]
[372409775,1752633063631,-460.0,0.00021917,2]
[372409776,1752633063640,-645.62,0.00021917,2]
[372409777,1752633063650,-513.07,0.00021917,2]
[372409778,1752633063662,-151.0,0.00021917,2]
[372409779,1752633063672,-8133.37,0.00021917,2]
[372409780,1752633063682,-151.0,0.00021917,2]
[372409781,1752633063691,-7818.5,0.00021917,2]
[372409782,1752633063701,-151.0,0.00021917,2]
[372409783,1752633063711,-3184.12,0.00021917,2]
[372409784,1752633063720,-223.356858,0.00021917,2]
[372409785,1752633063730,-151.0,0.00021917,2]
[372409786,1752633063739,-151.0,0.00021917,2]
[372409787,1752633063749,-460.0,0.00021917,2]
[372409788,1752633063758,-151.0,0.00021917,2]
[372409789,1752633063767,-627.67,0.00021917,2]
[372409790,1752633063776,-460.0,0.00021917,2]
[372409791,1752633063786,-151.0,0.00021917,2]
[372409792,1752633063796,-8123.15,0.00021917,2]
[372409793,1752633063805,-461.17828677,0.00021917,2]
[372409794,1752633063815,-939.57,0.00021917,2]
[372409795,1752633063824,-3130.55,0.00021917,2]
[372409796,1752633063833,-2817.23,0.00021917,2]
[372409797,1752633063843,-460.0,0.00021917,2]
[372409798,1752633063853,-161.25523575,0.00021917,2]
[372409799,1752633063863,-460.0,0.00021917,2]
[372409800,1752633063872,-460.0,0.00021917,2]
[372409801,1752633063882,-460.0,0.00021917,2]
[372409802,1752633063891,-1813.16,0.00021917,2]
[372409803,1752633063901,-785.84,0.00021917,2]
[372409804,1752633063910,-192.815384,0.00021917,2]
[372409805,1752633063919,-500.99480526,0.00021917,2]
[372409806,1752633063929,-4890.84,0.00021917,2]
[372409807,1752633063939,-1053.76,0.00021917,2]
[372409808,1752633063949,-504.57,0.00021917,2]
[372409809,1752633063958,-497.71,0.00021917,2]
[372409810,1752633063968,-460.0,0.00021917,2]
[372409811,1752633063978,-500.0,0.00021917,2]
[372409812,1752633063987,-153.065811,0.00021917,2]
[372409813,1752633063999,-500.0,0.00021917,2]
[372409814,1752633064009,-606.83007092,0.00021917,2]
[372409815,1752633064018,-1718.98,0.00021917,2]
[372409816,1752633064028,-5905.09,0.00021917,2]
[372409817,1752633064038,-5179.89,0.00021917,2]
[372409818,1752633064048,-462.85104393,0.00021917,2]
[372409819,1752633064058,-10278.51,0.00021917,2]
[372409820,1752633064068,-448.95354858,0.00021917,2]
[372409821,1752633064078,-4679.08,0.00021917,2]
[372409822,1752633064087,-500.0,0.00021917,2]
[372409823,1752633064097,-460.0,0.00021917,2]
[372409824,1752633064107,-500.0,0.00021917,2]
[372409825,1752633064117,-500.0,0.00021917,2]
[372409826,1752633064126,-500.0,0.00021917,2]
[372409827,1752633064136,-501.98887246,0.00021917,2]
[372409828,1752633064146,-460.0,0.00021917,2]
[372409829,1752633064157,-498.57,0.00021917,2]
[372409830,1752633064166,-460.0,0.00021917,2]
[372409831,1752633064175,-460.0,0.00021917,2]
[372409832,1752633064185,-7390.87,0.00021917,2]
[372409833,1752633064195,-1163.51,0.00021917,2]
[372409834,1752633064205,-4276.94,0.00021917,2]
[372409835,1752633064215,-20841.03,0.00021917,2]
[372409836,1752633064226,-1004.09,0.00021917,2]
[372409837,1752633064235,-1875.96,0.00021917,2]
[372409838,1752633064245,-460.0,0.00021917,2]
[372409839,1752633064257,-460.0,0.00021917,2]
[372409840,1752633064266,-1086.694755,0.00021917,2]
[372409841,1752633064276,-460.0,0.00021917,2]
[372409842,1752633064286,-1557.04,0.00021917,2]
[372409843,1752633064295,-500.0,0.00021917,2]
[372409844,1752633064305,-166.49185769,0.00021917,2]
[372409845,1752633064314,-1519.19,0.00021917,2]
[372409846,1752633064324,-473.42,0.00021917,2]
[372409847,1752633064334,-460.0,0.00021917,2]
[372409848,1752633064343,-3105.51,0.00021917,2]
[372409849,1752633064353,-3136.13,0.00021917,2]
[372409850,1752633064363,-3042.57,0.00021917,2]
[372409851,1752633064372,-460.0,0.00021917,2]
[372409852,1752633064382,-460.0,0.00021917,2]
[372409853,1752633064393,-7871.55,0.00021917,2]
[372409854,1752633064406,-638.34,0.00021917,2]
[372409855,1752633064417,-460.0,0.00021917,2]
[372409856,1752633064427,-460.0,0.00021917,2]
[372409857,1752633064441,-1272.22,0.00021917,2]
[372409858,1752633064451,-5315.14,0.00021917,2]
[372409859,1752633064462,-538.48,0.00021917,2]
[372409860,1752633064472,-13725.46,0.00021917,2]
[372409861,1752633064483,-5888.13,0.00021917,2]
[372409862,1752633064492,-460.0,0.00021917,2]
[372409863,1752633064503,-460.0,0.00021917,2]
[372409864,1752633064513,-460.0,0.00021917,2]
[372409865,1752633064523,-2065.36,0.00021917,2]
[372409866,1752633064532,-818.01,0.00021917,2]
[372409867,1752633064543,-6468.13,0.00021917,2]
[372409868,1752633064552,-460.0,0.00021917,2]
[372409869,1752633064562,-531.12,0.00021917,2]
[372409870,1752633064573,-683.01,0.00021917,2]
[372409871,1752633064583,-460.78196901,0.00021917,2]
[372409872,1752633064593,-460.0,0.00021917,2]
[372409873,1752633064604,-595.71,0.00021917,2]
[372409874,1752633064614,-801.63,0.00021917,2]
[372409875,1752633064623,-690.72,0.00021917,2]
[372409876,1752633064633,-460.0,0.00021917,2]
[372409877,1752633064642,-1517.11,0.00021917,2]
[372409878,1752633064652,-2295.14,0.00021917,2]
[372409879,1752633064661,-4385.75,0.00021917,2]
[372409880,1752633064670,-632.41,0.00021917,2]
[372409881,1752633064681,-460.0,0.00021917,2]
[372409882,1752633064691,-460.0,0.00021917,2]
[372409883,1752633064701,-1008.24,0.00021917,2]
[372409884,1752633064710,-460.0,0.00021917,2]
[372409885,1752633064720,-658.49,0.00021917,2]
[372409886,1752633064730,-2457.44,0.00021917,2]
[372409887,1752633064740,-460.0,0.00021917,2]
[372409888,1752633064752,-8473.22,0.00021917,2]
[372409889,1752633064761,-460.0,0.00021917,2]
[372409890,1752633064770,-5419.55,0.00021917,2]
[372409891,1752633064779,-1133.22,0.00021917,2]
[372409892,1752633064788,-2322.46,0.00021917,2]
[372409893,1752633064798,-533.47157827,0.00021917,2]
[372409894,1752633064807,-460.0,0.00021917,2]
[372409895,1752633064817,-460.0,0.00021917,2]
[372409896,1752633064826,-460.0,0.00021917,2]
[372409897,1752633064836,-460.0,0.00021917,2]